[Event "3rd Matrix Cup 2024"]
[Site "New Delhi"]
[Date "2024.04.07"]
[Round "4.5"]
[White "Gopal Aravamuthan Iyengar"]
[Black "Daksh Goyal"]
[Result "0-1"]
[ECO "D00"]
[WhiteElo "1758"]
[BlackElo "1916"]
[Annotator "RC"]
[PlyCount "156"]
[EventDate "2024.04.07"]
[EventType "swiss"]
[EventCountry "IND"]
[SourceTitle "playchess.com"]
[Source "ChessBase"]
[SourceQuality "1"]
[TimeControl "5400+30"]

1. d4 {[%emt 0:00:04]} d5 {[%emt 0:01:48]} 2. Nc3 {[%emt 0:00:11]} Nf6 {[%emt 0:00:06]} 3. Bf4 {[%emt 0:00:05]} e6 {[%emt 0:01:02]} 4. Nb5 {[%emt 0:00:05]} Na6 {[%emt 0:00:04]} 5. e3 {[%emt 0:00:05]} c6 {[%emt 0:08:40]} 6. Nc3 {[%emt 0:00:02]} Nb8 {[%emt 0:00:10]} 7. Nf3 {[%emt 0:00:57]} Be7 {[%emt 0:05:04]} 8. Bd3 {[%emt 0:02:23]} a6 {[%emt 0:03:25]} 9. O-O {[%emt 0:05:59]} O-O {[%emt 0:07:49]} 10. Ne2 {[%emt 0:03:28]} Nh5 {[%emt 0:06:00]} 11. e4 {[%emt 0:15:17]} Nxf4 {[%emt 0:05:10]} 12. Nxf4 {[%emt 0:00:04]} dxe4 {[%emt 0:01:51]} 13. Bxe4 {[%emt 0:00:03]} Nd7 {[%emt 0:05:41]} 14. c3 {[%emt 0:07:45]} Bd6 {[%emt 0:05:43]} 15. Ne2 {[%emt 0:01:17]} e5 {[%emt 0:45:27]} 16. Bc2 {[%emt 0:04:46]} g6 {[%emt 0:00:00]} 17. Re1 {[%emt 0:05:18]} exd4 {[%emt 0:00:00]} 18. Nexd4 {[%emt 0:00:25]} Nf6 {[%emt 0:00:00]} 19. h3 {[%emt 0:01:47]} Qc7 {[%emt 0:00:00]} 20. Nd2 {[%emt 0:10:47]} c5 {[%emt 0:00:00]} 21. N4f3 {[%emt 0:00:33]} Rd8 {[%emt 0:00:00]} 22. Qe2 {[%emt 0:02:30]} Re8 {[%emt 0:00:00]} 23. Qf1 {[%emt 0:01:24]} Be6 {[%emt 0:00:00]} 24. Bb3 {[%emt 0:04:17]} Bxb3 {[%emt 0:00:00]} 25. Nxb3 {[%emt 0:00:50]} c4 {[%emt 0:00:00]} 26. Nbd2 {[%emt 0:01:26]} b5 {[%emt 0:00:00]} 27. Rxe8+ {[%emt 0:01:04]} Rxe8 {[%emt 0:00:00]} 28. Re1 {[%emt 0:00:10]} Qd7 {[%emt 0:00:00]} 29. Rxe8+ {[%emt 0:01:37]} Qxe8 {[%emt 0:00:00]} 30. Qe1 {[%emt 0:00:47]} Qxe1+ {[%emt 0:00:00]} 31. Nxe1 {[%emt 0:00:03]} Nd5 {[%emt 0:00:00]} 32. g3 {[%emt 0:01:22]} Nb6 {[%emt 0:00:10]} 33. Nef3 {[%emt 0:06:54]} f5 {[%emt 0:03:14]} 34. b3 {[%emt 0:01:12]} b4 {[%emt 0:05:23]} 35. Nxc4 {[%emt 0:04:10]} bxc3 {[%emt 0:00:31]} 36. Ne1 {[%emt 0:00:22]} Bc5 {[%emt 0:00:25]} 37. Nxb6 {[%emt 0:00:09]} Bxb6 {[%emt 0:00:01]} 38. Kf1 {[%emt 0:00:56]} Kf7 {[%emt 0:00:02]} 39. Ke2 {[%emt 0:00:20]} Ke6 {[%emt 0:00:34]} 40. f3 {[%emt 0:00:41]} h5 {[%emt 0:01:19]} 41. Nc2 {[%emt 0:00:50]} g5 {[%emt 0:00:43]} 42. g4 {[%emt 0:18:10]} fxg4 {[%emt 0:00:24]} 43. fxg4 {[%emt 0:00:05]} hxg4 {[%emt 0:00:16]} 44. hxg4 {[%emt 0:00:04]} Ke5 {[%emt 0:00:18]} 45. Kd3 {[%emt 0:01:36]} Kf4 {[%emt 0:00:00]} 46. Kxc3 {[%emt 0:00:22]} Bf2 {[%emt 0:00:53]} 47. Kd3 {[%emt 0:00:36]} Kxg4 {[%emt 0:00:01]} 48. Ke2 {[%emt 0:00:10]} Ba7 {[%emt 0:01:30]} 49. Ne1 {[%emt 0:00:47]} Kf4 {[%emt 0:00:36]} 50. b4 {[%emt 0:00:35]} g4 {[%emt 0:00:18]} 51. a4 {[%emt 0:00:09]} Ke4 {[%emt 0:00:22]} 52. b5 {[%emt 0:00:52]} a5 {[%emt 0:00:01]} 53. Nc2 {[%emt 0:00:35]} Bc5 {[%emt 0:00:01]} 54. Ne1 {[%emt 0:00:16]} Ba7 {[%emt 0:02:28]} 55. Nc2 {[%emt 0:00:35]} Bb6 {[%emt 0:00:00]} 56. Ne1 {[%emt 0:00:32]} g3 {[%emt 0:00:27]} 57. Ng2 {[%emt 0:00:37]} Bf2 {[%emt 0:00:17]} 58. Ne1 {[%emt 0:00:30]} Ba7 {[%emt 0:00:40]} 59. Ng2 {[%emt 0:00:10]} Bb8 {[%emt 0:00:06]} 60. Ne3 {[%emt 0:00:45]} Kd4 {[%emt 0:00:08]} 61. Kf3 {[%emt 0:00:28]} Kc5 {[%emt 0:00:19]} 62. Nf5 {[%emt 0:00:36]} Kb4 {[%emt 0:00:06]} 63. Nxg3 {[%emt 0:00:28]} Kxa4 {[%emt 0:00:01]} 64. b6 {[%emt 0:00:27]} Kb4 {[%emt 0:02:07]} 65. Ne2 {[%emt 0:00:23]} a4 {[%emt 0:00:13]} 66. Nc1 {[%emt 0:00:32]} Kc3 {[%emt 0:00:25]} 67. Ke2 {[%emt 0:00:21]} Kc2 {[%emt 0:00:05]} 68. Na2 {[%emt 0:00:34]} Bd6 {[%emt 0:00:11]} 69. b7 {[%emt 0:00:16]} Kb2 {[%emt 0:01:12]} 70. Nb4 {[%emt 0:00:06]} a3 {[%emt 0:00:43]} 71. Kd3 {[%emt 0:00:24]} Kb3 {[%emt 0:00:33]} 72. Nc2 {[%emt 0:00:17]} a2 {[%emt 0:00:01]} 73. Na1+ {[%emt 0:01:44]} Kb2 {[%emt 0:00:03]} 74. Nc2 {[%emt 0:00:16]} Bf4 {[%emt 0:00:16]} 75. Na1 {[%emt 0:00:21]} Kxa1 {[%emt 0:00:45]} 76. Kc2 {[%emt 0:00:03]} Bc7 {[%emt 0:00:06]} 77. Kc1 {[%emt 0:00:08]} Bb8 {[%emt 0:00:01]} 78. Kc2 {[%emt 0:00:10]} Bf4 {[%emt 0:00:02]} 0-1

[Event "3rd Matrix Cup 2024"]
[Site "New Delhi"]
[Date "2024.04.07"]
[Round "4.6"]
[White "Sharma, Harish"]
[Black "Lakshmi Charan Naidu G"]
[Result "1/2-1/2"]
[ECO "B27"]
[WhiteElo "1913"]
[BlackElo "1753"]
[Annotator "RC"]
[PlyCount "117"]
[EventDate "2024.04.07"]
[EventType "swiss"]
[EventCountry "IND"]
[SourceTitle "playchess.com"]
[Source "ChessBase"]
[SourceQuality "1"]
[TimeControl "5400+30"]

1. e4 {[%emt 0:00:07]} c5 {[%emt 0:02:30]} 2. Nf3 {[%emt 0:00:18]} g6 {[%emt 0:00:18]} 3. d4 {[%emt 0:02:02]} cxd4 {[%emt 0:00:05]} 4. Qxd4 {[%emt 0:03:23]} Nf6 {[%emt 0:00:06]} 5. e5 {[%emt 0:00:45]} Nc6 {[%emt 0:00:04]} 6. Qc3 {[%emt 0:00:19]} Nd5 {[%emt 0:00:06]} 7. Qd2 {[%emt 0:00:28]} Nb6 {[%emt 0:00:05]} 8. a4 {[%emt 0:01:22]} a5 {[%emt 0:01:18]} 9. Bb5 {[%emt 0:00:32]} Bg7 {[%emt 0:00:17]} 10. Qe2 {[%emt 0:00:36]} O-O {[%emt 0:03:59]} 11. O-O {[%emt 0:00:14]} d5 {[%emt 0:06:59]} 12. exd6 {[%emt 0:04:18]} Qxd6 {[%emt 0:01:00]} 13. h3 {[%emt 0:00:49]} Rd8 {[%emt 0:01:49]} 14. c3 {[%emt 0:02:58]} Nd5 {[%emt 0:02:11]} 15. Na3 {[%emt 0:00:27]} Nf4 {[%emt 0:10:12]} 16. Bxf4 {[%emt 0:04:28]} Qxf4 {[%emt 0:00:04]} 17. Rad1 {[%emt 0:00:32]} Be6 {[%emt 0:02:38]} 18. Nc4 {[%emt 0:07:32]} Bxc4 {[%emt 0:08:10]} 19. Bxc4 {[%emt 0:01:34]} Ne5 {[%emt 0:00:08]} 20. Nxe5 {[%emt 0:00:35]} Bxe5 {[%emt 0:02:22]} 21. g3 {[%emt 0:00:04]} Qf6 {[%emt 0:00:08]} 22. Rfe1 {[%emt 0:02:18]} Bd6 {[%emt 0:00:06]} 23. Rd3 {[%emt 0:00:13]} e6 {[%emt 0:01:28]} 24. Rf3 {[%emt 0:00:16]} Qe7 {[%emt 0:00:04]} 25. h4 {[%emt 0:00:08]} Rac8 {[%emt 0:01:30]} 26. b3 {[%emt 0:04:48]} Rc5 {[%emt 0:00:54]} 27. Rd1 {[%emt 0:00:38]} Re5 {[%emt 0:01:03]} 28. Re3 {[%emt 0:07:23]} Rxe3 {[%emt 0:00:22]} 29. Qxe3 {[%emt 0:00:09]} Bc7 {[%emt 0:01:29]} 30. Rxd8+ {[%emt 0:01:24]} Qxd8 {[%emt 0:00:08]} 31. Qf3 {[%emt 0:00:03]} b6 {[%emt 0:01:15]} 32. h5 {[%emt 0:00:03]} Qg5 {[%emt 0:01:55]} 33. Qb7 {[%emt 0:01:03]} Be5 {[%emt 0:00:45]} 34. hxg6 {[%emt 0:01:38]} hxg6 {[%emt 0:00:05]} 35. Kg2 {[%emt 0:00:37]} Qf6 {[%emt 0:02:17]} 36. Qxb6 {[%emt 0:00:26]} Bxc3 {[%emt 0:00:02]} 37. Qb8+ {[%emt 0:00:16]} Kg7 {[%emt 0:00:06]} 38. Qc7 {[%emt 0:00:42]} Bd4 {[%emt 0:01:00]} 39. f3 {[%emt 0:00:11]} Qe5 {[%emt 0:00:40]} 40. Qxe5+ {[%emt 0:00:30]} Bxe5 {[%emt 0:00:07]} 41. b4 {[%emt 0:04:31]} axb4 {[%emt 0:00:35]} 42. a5 {[%emt 0:04:44]} Kf6 {[%emt 0:00:30]} 43. a6 {[%emt 0:00:15]} Bd4 {[%emt 0:00:21]} 44. f4 {[%emt 0:00:08]} g5 {[%emt 0:00:05]} 45. Kf3 {[%emt 0:00:19]} gxf4 {[%emt 0:00:22]} 46. gxf4 {[%emt 0:00:03]} Ba7 {[%emt 0:00:10]} 47. Ke4 {[%emt 0:00:07]} Bc5 {[%emt 0:00:06]} 48. Bb3 {[%emt 0:00:09]} Ba7 {[%emt 0:00:04]} 49. Bc2 {[%emt 0:00:08]} Bb6 {[%emt 0:00:05]} 50. Bb3 {[%emt 0:00:55]} Ba7 {[%emt 0:00:49]} 51. Bd1 {[%emt 0:00:20]} Ke7 {[%emt 0:00:48]} 52. Ke5 {[%emt 0:00:21]} f6+ {[%emt 0:00:07]} 53. Ke4 {[%emt 0:00:03]} Kd6 {[%emt 0:00:03]} 54. Bb3 {[%emt 0:00:08]} Bb6 {[%emt 0:01:10]} 55. Kd3 {[%emt 0:00:18]} e5 {[%emt 0:01:02]} 56. fxe5+ {[%emt 0:07:37]} fxe5 {[%emt 0:00:05]} 57. Kc4 {[%emt 0:00:20]} Bc5 {[%emt 0:00:05]} 58. Bc2 {[%emt 0:00:20]} Ba7 {[%emt 0:00:07]} 59. Be4 {[%emt 0:00:29]} 1/2-1/2

[Event "3rd Matrix Cup 2024"]
[Site "New Delhi"]
[Date "2024.04.07"]
[Round "4.7"]
[White "Mrityunjay Kumar"]
[Black "Sanyam Srivastava"]
[Result "1-0"]
[ECO "C96"]
[WhiteElo "1900"]
[BlackElo "1742"]
[Annotator "RC"]
[PlyCount "77"]
[EventDate "2024.04.07"]
[EventType "swiss"]
[EventCountry "IND"]
[SourceTitle "playchess.com"]
[Source "ChessBase"]
[SourceQuality "1"]
[TimeControl "5400+30"]

1. e4 {[%emt 0:01:04]} e5 {[%emt 0:00:35]} 2. Nf3 {[%emt 0:00:08]} Nc6 {[%emt 0:00:07]} 3. Bb5 {[%emt 0:00:09]} a6 {[%emt 0:00:07]} 4. Ba4 {[%emt 0:00:06]} Nf6 {[%emt 0:00:07]} 5. O-O {[%emt 0:00:10]} Be7 {[%emt 0:00:11]} 6. Re1 {[%emt 0:00:58]} b5 {[%emt 0:00:13]} 7. Bb3 {[%emt 0:00:11]} d6 {[%emt 0:00:22]} 8. c3 {[%emt 0:00:11]} O-O {[%emt 0:00:08]} 9. h3 {[%emt 0:00:08]} Na5 {[%emt 0:00:09]} 10. Bc2 {[%emt 0:00:06]} c5 {[%emt 0:00:13]} 11. d4 {[%emt 0:00:17]} cxd4 {[%emt 0:00:08]} 12. cxd4 {[%emt 0:00:06]} Qc7 {[%emt 0:00:07]} 13. Nc3 {[%emt 0:00:26]} Bd7 {[%emt 0:06:30]} 14. Bd3 {[%emt 0:11:20]} Rfe8 {[%emt 0:06:16]} 15. Bg5 {[%emt 0:02:08]} b4 {[%emt 0:06:27]} 16. Ne2 {[%emt 0:01:08]} h6 {[%emt 0:00:17]} 17. Bd2 {[%emt 0:01:15]} Qb6 {[%emt 0:05:34]} 18. Be3 {[%emt 0:03:22]} Qb8 {[%emt 0:01:50]} 19. Ng3 {[%emt 0:01:03]} Bf8 {[%emt 0:03:06]} 20. Rc1 {[%emt 0:00:51]} Bb5 {[%emt 0:05:56]} 21. Qd2 {[%emt 0:05:26]} Bxd3 {[%emt 0:04:24]} 22. Qxd3 {[%emt 0:00:04]} Qb7 {[%emt 0:02:19]} 23. Rc2 {[%emt 0:03:16]} d5 {[%emt 0:11:53]} 24. Nxe5 {[%emt 0:02:08]} dxe4 {[%emt 0:00:30]} 25. Qe2 {[%emt 0:00:46]} Bd6 {[%emt 0:00:23]} 26. Ng4 {[%emt 0:05:17]} Nxg4 {[%emt 0:17:19]} 27. Qxg4 {[%emt 0:00:08]} Bxg3 {[%emt 0:00:11]} 28. Qxg3 {[%emt 0:00:04]} Kh7 {[%emt 0:01:28]} 29. Rc7 {[%emt 0:04:57]} Qd5 {[%emt 0:01:06]} 30. Rc5 {[%emt 0:02:34]} Qxa2 {[%emt 0:01:01]} 31. Qc7 {[%emt 0:00:28]} Nb3 {[%emt 0:04:56]} 32. Qxf7 {[%emt 0:00:10]} Rf8 {[%emt 0:01:12]} 33. Qd5 {[%emt 0:00:27]} Qxb2 {[%emt 0:02:31]} 34. Rc7 {[%emt 0:03:30]} Rad8 {[%emt 0:05:02]} 35. Qxe4+ {[%emt 0:02:19]} Kh8 {[%emt 0:00:28]} 36. Qg6 {[%emt 0:03:50]} Rg8 {[%emt 0:02:17]} 37. Bxh6 {[%emt 0:01:21]} Qxd4 {[%emt 0:00:42]} 38. Qh5 {[%emt 0:00:11]} Rge8 {[%emt 0:02:34]} 39. Bxg7+ {[%emt 0:00:15]} 1-0

[Event "3rd Matrix Cup 2024"]
[Site "New Delhi"]
[Date "2024.04.07"]
[Round "4.8"]
[White "Shreyash Singh"]
[Black "Aarit Kapil"]
[Result "1-0"]
[ECO "B14"]
[WhiteElo "1853"]
[BlackElo "1741"]
[Annotator "NA"]
[PlyCount "237"]
[EventDate "2024.04.07"]
[EventType "swiss"]
[EventCountry "IND"]
[SourceTitle "playchess.com"]
[Source "ChessBase"]
[SourceQuality "1"]
[TimeControl "5400+30"]

1. d4 {[%emt 0:02:43]} d5 {[%emt 0:00:12]} 2. c4 {[%emt 0:00:16]} dxc4 {[%emt 0:00:06]} 3. Nf3 {[%emt 0:00:04]} e6 {[%emt 0:00:16]} 4. e3 {[%emt 0:00:22]} c5 {[%emt 0:00:01]} 5. Bxc4 {[%emt 0:00:14]} cxd4 {[%emt 0:00:01]} 6. exd4 {[%emt 0:00:48]} Nf6 {[%emt 0:00:07]} 7. Nc3 {[%emt 0:00:39]} Be7 {[%emt 0:00:07]} 8. O-O {[%emt 0:00:15]} O-O {[%emt 0:00:07]} 9. Re1 {[%emt 0:03:42]} Nc6 {[%emt 0:00:45]} 10. Bg5 {[%emt 0:01:02]} h6 {[%emt 0:00:56]} 11. Bh4 {[%emt 0:01:09]} Nd5 {[%emt 0:04:16]} 12. Bxd5 {[%emt 0:02:54]} Bxh4 {[%emt 0:00:02]} 13. Bxc6 {[%emt 0:01:54]} bxc6 {[%emt 0:00:01]} 14. Rc1 {[%emt 0:03:32]} Be7 {[%emt 0:03:50]} 15. Ne4 {[%emt 0:03:12]} Bb7 {[%emt 0:05:44]} 16. Qc2 {[%emt 0:03:17]} Rc8 {[%emt 0:05:39]} 17. Nc5 {[%emt 0:02:28]} Ba8 {[%emt 0:03:27]} 18. Re4 {[%emt 0:13:06]} Qd5 {[%emt 0:02:03]} 19. b3 {[%emt 0:01:04]} Rfd8 {[%emt 0:02:09]} 20. h3 {[%emt 0:03:11]} Bxc5 {[%emt 0:07:37]} 21. dxc5 {[%emt 0:00:40]} Qd3 {[%emt 0:00:38]} 22. Qxd3 {[%emt 0:08:16]} Rxd3 {[%emt 0:00:02]} 23. Ra4 {[%emt 0:00:36]} Rc7 {[%emt 0:00:56]} 24. Kf1 {[%emt 0:00:35]} Kf8 {[%emt 0:00:31]} 25. Ke2 {[%emt 0:00:17]} Rd5 {[%emt 0:00:09]} 26. Rc2 {[%emt 0:03:47]} Ke7 {[%emt 0:00:45]} 27. b4 {[%emt 0:05:18]} Rcd7 {[%emt 0:09:09]} 28. Nd2 {[%emt 0:05:29]} Re5+ {[%emt 0:02:58]} 29. Kf1 {[%emt 0:00:39]} Kd8 {[%emt 0:00:23]} 30. f3 {[%emt 0:01:26]} Kc8 {[%emt 0:01:38]} 31. Nc4 {[%emt 0:02:47]} Red5 {[%emt 0:00:06]} 32. Nd6+ {[%emt 0:00:47]} Kb8 {[%emt 0:00:01]} 33. Ra3 {[%emt 0:00:47]} Bb7 {[%emt 0:01:54]} 34. Rac3 {[%emt 0:00:32]} Ba6+ {[%emt 0:02:13]} 35. Kf2 {[%emt 0:00:13]} Bb5 {[%emt 0:01:13]} 36. Ra3 {[%emt 0:01:07]} Rd4 {[%emt 0:00:40]} 37. Rb2 e5 {[%emt 0:00:56]} 38. Ke3 {[%emt 0:03:31]} g6 {[%emt 0:01:52]} 39. g4 {[%emt 0:01:34]} h5 {[%emt 0:01:21]} 40. gxh5 {[%emt 0:04:47]} gxh5 {[%emt 0:00:02]} 41. Rg2 {[%emt 0:00:14]} a6 {[%emt 0:02:28]} 42. Rb3 {[%emt 0:02:08]} Bf1 {[%emt 0:07:56]} 43. Rg5 {[%emt 0:00:40]} Bxh3 {[%emt 0:00:27]} 44. Rxh5 {[%emt 0:00:30]} Be6 {[%emt 0:02:51]} 45. Ra3 {[%emt 0:06:54]} Ka7 {[%emt 0:00:33]} 46. b5 {[%emt 0:01:46]} R4xd6 {[%emt 0:00:02]} 47. Rxa6+ {[%emt 0:05:32]} Kb7 {[%emt 0:00:01]} 48. cxd6 {[%emt 0:00:08]} cxb5 {[%emt 0:00:13]} 49. Ra3 {[%emt 0:00:19]} Rxd6 {[%emt 0:01:21]} 50. Rxe5 {[%emt 0:00:46]} Kb6 {[%emt 0:00:06]} 51. Ra8 {[%emt 0:02:51]} Bc4 {[%emt 0:00:21]} 52. a4 {[%emt 0:01:04]} bxa4 {[%emt 0:00:07]} 53. Rxa4 {[%emt 0:00:08]} Be6 {[%emt 0:00:08]} 54. f4 {[%emt 0:00:08]} Rd1 {[%emt 0:18:01]} 55. Rd4 {[%emt 0:01:01]} Re1+ {[%emt 0:01:38]} 56. Kf2 {[%emt 0:00:18]} Rxe5 {[%emt 0:00:14]} 57. fxe5 {[%emt 0:00:08]} Kc5 {[%emt 0:00:01]} 58. Ke3 {[%emt 0:00:15]} Ba2 {[%emt 0:00:20]} 59. Rd2 {[%emt 0:00:08]} Be6 {[%emt 0:00:17]} 60. Kf4 {[%emt 0:00:08]} Kc4 {[%emt 0:00:23]} 61. Kg5 {[%emt 0:00:11]} Kc3 {[%emt 0:00:08]} 62. Rd6 {[%emt 0:00:12]} Kc4 {[%emt 0:00:51]} 63. Kf6 {[%emt 0:00:21]} Bd5 {[%emt 0:00:06]} 64. Ra6 {[%emt 0:01:03]} Kd4 {[%emt 0:00:45]} 65. Ra4+ {[%emt 0:00:13]} Kc5 {[%emt 0:00:09]} 66. Ke7 {[%emt 0:00:45]} Be6 {[%emt 0:01:49]} 67. Ra5+ {[%emt 0:00:23]} Kd4 {[%emt 0:00:29]} 68. Kd6 {[%emt 0:00:13]} Ke4 {[%emt 0:00:05]} 69. Ra1 {[%emt 0:01:16]} Bb3 {[%emt 0:01:12]} 70. Re1+ {[%emt 0:00:57]} Kf5 {[%emt 0:00:20]} 71. Kc5 {[%emt 0:00:12]} f6 {[%emt 0:00:26]} 72. exf6 {[%emt 0:00:26]} Kxf6 {[%emt 0:00:01]} 73. Kd6 {[%emt 0:00:07]} Kg7 {[%emt 0:00:33]} 74. Ke7 {[%emt 0:00:07]} Bg8 {[%emt 0:00:07]} 75. Rg1+ {[%emt 0:00:04]} Kh8 {[%emt 0:00:06]} 76. Kf8 {[%emt 0:00:04]} Bh7 {[%emt 0:00:05]} 77. Kf7 {[%emt 0:00:07]} Be4 {[%emt 0:02:00]} 78. Re1 {[%emt 0:00:11]} Bd5+ {[%emt 0:00:15]} 79. Kg6 {[%emt 0:00:16]} Bb3 {[%emt 0:00:55]} 80. Re3 {[%emt 0:01:25]} Bc2+ {[%emt 0:00:49]} 81. Kf7 {[%emt 0:00:11]} Bb1 {[%emt 0:01:37]} 82. Rh3+ {[%emt 0:00:38]} Bh7 {[%emt 0:00:03]} 83. Kf6 {[%emt 0:00:04]} Kg8 {[%emt 0:00:09]} 84. Rg3+ {[%emt 0:00:05]} Kh8 {[%emt 0:00:09]} 85. Rg7 {[%emt 0:00:49]} Bg8 {[%emt 0:00:06]} 86. Ra7 {[%emt 0:00:04]} Bh7 {[%emt 0:00:06]} 87. Kg5 {[%emt 0:00:04]} Bg8 {[%emt 0:00:28]} 88. Kg6 {[%emt 0:00:11]} Bd5 {[%emt 0:00:06]} 89. Ra5 {[%emt 0:01:07]} Be4+ {[%emt 0:00:59]} 90. Kf7 {[%emt 0:00:42]} Bb1 {[%emt 0:01:05]} 91. Ra8+ {[%emt 0:00:40]} Kh7 {[%emt 0:00:07]} 92. Ra1 {[%emt 0:00:11]} Be4 {[%emt 0:00:20]} 93. Re1 {[%emt 0:00:07]} Bd5+ {[%emt 0:00:33]} 94. Kf6 {[%emt 0:00:06]} Kh8 {[%emt 0:00:13]} 95. Kg6 {[%emt 0:00:07]} Bc4 {[%emt 0:00:44]} 96. Rc1 {[%emt 0:00:38]} Bd3+ {[%emt 0:00:27]} 97. Kh6 {[%emt 0:00:08]} Bh7 {[%emt 0:00:07]} 98. Rh1 {[%emt 0:00:18]} Be4 {[%emt 0:00:16]} 99. Rh4 {[%emt 0:00:05]} Bh7 {[%emt 0:00:04]} 100. Kg5 {[%emt 0:00:09]} Kg7 {[%emt 0:00:12]} 101. Rb4 {[%emt 0:00:05]} Kh8 {[%emt 0:01:08]} 102. Kf6 {[%emt 0:00:04]} Bg8 {[%emt 0:00:13]} 103. Rh4+ {[%emt 0:00:49]} Bh7 {[%emt 0:00:11]} 104. Rh2 {[%emt 0:00:04]} Kg8 {[%emt 0:00:06]} 105. Kg5 {[%emt 0:00:05]} Kh8 {[%emt 0:00:44]} 106. Kh6 {[%emt 0:00:05]} Be4 {[%emt 0:00:09]} 107. Re2 {[%emt 0:00:23]} Bh7 {[%emt 0:00:23]} 108. Re7 {[%emt 0:00:10]} Bg8 {[%emt 0:00:44]} 109. Kg6 {[%emt 0:00:05]} Bc4 {[%emt 0:00:38]} 110. Re1 {[%emt 0:00:11]} Bd3+ {[%emt 0:00:11]} 111. Kf6 {[%emt 0:00:13]} Bh7 {[%emt 0:00:23]} 112. Rh1 {[%emt 0:00:10]} Kg8 {[%emt 0:00:15]} 113. Kg5 {[%emt 0:00:07]} Kh8 {[%emt 0:00:20]} 114. Kh6 {[%emt 0:00:03]} Bg8 {[%emt 0:00:07]} 115. Kg6+ {[%emt 0:00:08]} Bh7+ {[%emt 0:00:07]} 116. Rxh7+ {[%emt 0:00:08]} Kg8 {[%emt 0:00:18]} 117. Ra7 {[%emt 0:00:07]} Kf8 {[%emt 0:00:05]} 118. Rb7 {[%emt 0:00:07]} Kg8 {[%emt 0:00:06]} 119. Rb8# {[%emt 0:00:07]} 1-0

[Event "3rd Matrix Cup 2024"]
[Site "New Delhi"]
[Date "2024.04.08"]
[Round "5.1"]
[White "Aronyak Ghosh"]
[Black "Shreyash Singh"]
[Result "1-0"]
[ECO "A07"]
[WhiteElo "2517"]
[BlackElo "1853"]
[Annotator "TA"]
[PlyCount "77"]
[EventDate "2024.04.07"]
[EventType "swiss"]
[EventCountry "IND"]
[SourceTitle "playchess.com"]
[Source "ChessBase"]
[SourceQuality "1"]
[TimeControl "5400+30"]

{[%evp 10,77,18,15,28,8,14,7,21,13,21,11,11,19,20,18,28,7,23,22,12,18,35,35,33,36,56,54,53,66,76,18,104,83,143,141,141,132,143,139,195,200,209,206,191,198,276,268,400,335,332,318,375,378,423,195,194,164,177,93,102,92,99,69,272,262,519,496,579,631]} 1. Nf3 {[%emt 0:01:46]} Nf6 {[%emt 0:00:06]} 2. g3 {[%emt 0:00:19]} d5 {[%emt 0:00:09]} 3. Bg2 {[%emt 0:00:25]} c6 {[%emt 0:00:34]} 4. O-O {[%emt 0:01:18]} Bg4 {[%emt 0:01:04]} 5. d3 {[%emt 0:00:26]} Nbd7 {[%emt 0:00:09][%cal Bb8d7,Bd7c5,Bc5e6][%mdl 32]} 6. h3 {[%emt 0:01:38]} Bxf3 {[%emt 0:02:15]} 7. Bxf3 {[%emt 0:01:49]} e5 {[%emt 0:02:56]} 8. e4 {[%emt 0:01:46]} dxe4 {[%emt 0:04:36] The position is equal.} 9. dxe4 {[%emt 0:00:04]} Nc5 {[%emt 0:01:35]} 10. Qe2 {[%emt 0:04:47]} Qc7 {[%emt 0:03:33]} 11. a4 {[%emt 0:02:17]} a5 {[%emt 0:01:32]} 12. Nd2 {[%emt 0:02:58]} Ne6 {[%emt 0:04:40]} 13. c3 {[%emt 0:04:49]} Bc5 {[%emt 0:02:24]} 14. Nc4 {[%emt 0:01:42]} O-O {[%emt 0:03:15]} 15. h4 {[%emt 0:00:56]} Rad8 {[%emt 0:05:21]} 16. Bg2 {[%emt 0:12:27]} Rfe8 {[%emt 0:04:52]} 17. Bh3 {[%emt 0:03:28]} Ba7 {[%emt 0:06:46]} 18. Be3 {[%emt 0:06:54]} Bxe3 {[%emt 0:04:06]} 19. Qxe3 {[%emt 0:00:03]} h6 {[%emt 0:11:26]} 20. f3 {[%emt 0:04:10]} (20. Rfe1 $16) 20... Rd7 {[%emt 0:01:58]} (20... b5 $11 21. axb5 cxb5 22. Nxa5 Nh5) 21. Rf2 {[%emt 0:05:55]} c5 {[%emt 0:04:13]} ({Black should try} 21... Rdd8) 22. Rd2 $16 {[%emt 0:05:07] White is more active.} Rxd2 {[%emt 0:00:53]} 23. Qxd2 {[%emt 0:00:15]} Rd8 {[%emt 0:00:33] Repels Qd6} 24. Qc2 {[%emt 0:00:27]} g5 {[%emt 0:02:44]} (24... Nf8 $16 {is a better defense.} 25. Rd1 Rxd1+ 26. Qxd1 b6) 25. Bxe6 $18 {[%emt 0:02:19]} fxe6 {[%emt 0:00:07]} 26. hxg5 {[%emt 0:00:33]} hxg5 {[%emt 0:00:06]} 27. g4 {[%emt 0:00:18]} Rd7 {[%emt 0:32:07]} (27... Qd7 $142 28. Qe2 (28. Nxe5 Qd6 $18) (28. Nxa5 b5 $18) 28... Nh7 29. Nxe5 (29. Nxa5 Nf8 $11) 29... Qc7) 28. Qh2 {[%emt 0:05:35]} Rd3 {[%emt 0:00:00]} (28... Nh7 $142 29. Qh6 (29. Qxe5 Qxe5 30. Nxe5 Rd2 $18) (29. Nxe5 Rd8 $18) 29... Nf8 30. Qxg5+ Rg7 31. Qxe5 Qd8) 29. Qxe5 {[%emt 0:07:23]} (29. Nxe5 Rd8 30. Nc4 Qxh2+ 31. Kxh2 Kf7 $18) 29... Qxe5 {[%emt 0:00:00]} 30. Nxe5 {[%emt 0:00:01][%mdl 4096] Endgame. KRN-KRN} Rd2 {[%emt 0:00:00]} 31. Nc4 {[%emt 0:00:06][%csl LRa5,LRd2]} Re2 {[%emt 0:00:00]} 32. Ra3 {[%emt 0:03:12]} (32. Nxa5 Rxb2 33. Ra3 Nd7 $16) (32. Rd1 $142) 32... Nd7 {[%emt 0:00:00] [#]} 33. Kf1 $1 {[%emt 0:00:55]} (33. Nxa5 Ne5 $11) 33... Rh2 {[%emt 0:00:00]} 34. Rb3 {[%emt 0:00:19]} (34. Nxa5 $18 {Threatens to win with Nc4.} Rxb2 35. Nc4 Rb1+ 36. Ke2) 34... b6 $16 {[%emt 0:00:00]} 35. Rb5 {[%emt 0:00:52]} (35. Nxb6 Ne5 $14) 35... Kf7 {[%emt 0:00:00]} 36. Nxb6 {[%emt 0:00:46]} Ne5 {[%emt 0:00:00] [#]} (36... Nxb6 $14 37. Rxb6 Kf6) 37. Rxc5 $18 {[%emt 0:01:13]} ({Not} 37. Rxa5 Rd2 $11) 37... Nxf3 {[%emt 0:00:00]} (37... Nd3 {was worth a try.} 38. Rxa5 (38. Rxg5 Rxb2 39. Nc4 Rf2+ 40. Kg1 Rxf3 $18) 38... Rf2+ 39. Kg1 Rxb2) 38. Nc4 {[%emt 0:00:16]} ({Weaker is} 38. Rxa5 Rxb2 39. Ra7+ Kg6 $11) 38... Ke7 {[%emt 0:00:00]} 39. Rxa5 {[%emt 0:01:05] Weighted Error Value: White=0.19 (very precise) /Black=0.42.  Loses game:     	---       	Black=1      Mistake:       	White=3     	Black=6      Inaccurate:     	White=1     	---        OK:         	White=16    	Black=5      Best:        	White=2     	Black=3      Strong:       	White=1     	---} ({Worse is} 39. Nxa5 Rd2 $11) 1-0